bitfinex/quotes_ETHUSD_20250725
["timestamp","ask_amount","ask_price","bid_price","bid_amount"]
[1753455646210,5.0486,3635.7,3635.6,2.75057762]
[1753455646611,0.1376,3635.7,3635.6,2.75057762]
[1753455646810,5.0426,3635.7,3635.6,2.75057762]
[1753455647012,4.905,3635.7,3635.6,2.75057762]
[1753455647413,0.1376,3635.8,3635.5,2.75064816]
[1753455647664,4.902,3635.7,3635.4,2.75067685]
[1753455647828,1.08037506,3636.8,3635.7,0.8447]
[1753455648033,1.08037506,3636.8,3635.8,0.69320426]
[1753455648343,4.906,3637.1,3635.8,3.90732567]
[1753455648544,0.85,3637.5,3637.1,2.7494307]
[1753455648726,4.906,3637.2,3636.3,2.75004812]
[1753455648930,4.904,3637.1,3636.4,1.15689972]
[1753455649115,4.904,3637.1,3637.0,2.74951883]
[1753455649817,2.74960245,3636.9,3635.9,0.6657]
[1753455650043,3.0,3637.0,3635.9,0.6932035]
[1753455650243,4.902,3637.1,3636.5,2.74984777]
[1753455650428,4.902,3637.1,3636.0,0.4637]
[1753455650429,0.76513407,3637.0,3636.7,2.74974015]
[1753455650633,4.901,3637.2,3636.4,0.6657]
[1753455650831,0.85,3637.5,3636.6,2.74982126]
[1753455651057,4.898,3637.4,3636.6,0.6657]
[1753455651228,0.85,3637.5,3636.6,0.6657]
[1753455651719,0.85,3637.5,3637.0,2.74949727]
[1753455651720,4.895,3637.4,3637.0,2.74949727]
[1753455651917,4.895,3637.4,3636.6,0.6657]
[1753455652569,0.002,3638.0,3637.4,2.74921647]
[1753455652862,4.89,3638.0,3636.8,0.0274967]
[1753455653027,4.89,3638.0,3637.6,2.74906531]
[1753455653228,4.89,3638.0,3637.1,2.74940487]
[1753455653229,4.89,3638.0,3637.2,0.02749367]
[1753455653429,4.89,3638.0,3637.4,0.6657]
[1753455653674,4.89,3638.0,3637.7,2.74898947]
[1753455653964,4.89,3638.0,3637.4,3.41491399]
[1753455654142,4.89,3638.0,3637.7,2.74898674]
[1753455654475,4.89,3638.0,3637.8,2.74891226]
[1753455654634,4.89,3638.0,3637.7,2.74898059]
[1753455654833,5.379,3638.0,3637.4,3.41486833]
[1753455655065,5.379,3638.0,3637.5,2.74908962]
[1753455655277,5.379,3638.0,3636.8,0.6657]
[1753455655441,4.876,3637.9,3636.9,1.15689594]
[1753455655640,4.876,3637.9,3637.7,2.74892374]
[1753455655852,4.876,3637.9,3637.4,0.6657]
[1753455656147,4.876,3637.9,3637.0,3.21319058]
[1753455656148,0.5367,3637.8,3637.0,0.4637]
[1753455656363,4.876,3637.9,3637.3,2.74928314]
[1753455656672,4.876,3637.9,3637.6,2.74904274]
[1753455656869,4.876,3637.9,3637.0,0.49119518]
[1753455656870,4.876,3637.9,3637.8,2.74891417]
[1753455657078,4.876,3637.9,3637.3,0.4637]
[1753455657265,4.876,3637.9,3637.8,2.74891417]
[1753455657773,4.30104338,3637.9,3637.2,2.74931142]
[1753455657973,0.1376,3637.4,3637.0,2.74951854]
[1753455658186,0.1376,3637.4,3637.2,2.7493183]
[1753455658471,0.1376,3637.4,3637.3,2.74929205]
[1753455659179,4.866,3637.9,3637.3,1.267]
[1753455659471,4.866,3637.9,3637.8,2.74891417]
[1753455660172,4.866,3637.9,3637.5,0.1376]
[1753455660357,0.8017,3637.7,3636.9,0.1376]
[1753455660558,0.8017,3637.7,3636.4,0.4637]
[1753455660559,0.1376,3637.0,3636.5,0.1376]
[1753455660765,4.857,3636.9,3636.0,0.6657]
[1753455660963,0.1376,3636.5,3636.0,0.6657]
[1753455661177,0.1376,3636.5,3636.4,2.7499725]
[1753455661540,0.8101,3636.4,3635.9,0.1376]
[1753455661738,5.9194,3636.3,3635.5,0.1376]
[1753455661948,3.94794731,3636.2,3635.8,2.75035807]
[1753455662147,0.1376,3635.8,3635.6,2.75057762]
[1753455662386,4.9906,3635.8,3635.7,2.75050196]
[1753455662585,0.8101,3636.8,3635.7,1.1294]
[1753455662791,5.6601,3636.8,3636.6,2.74980472]
[1753455663083,3.0,3636.9,3636.2,0.6657]
[1753455663284,3.0,3636.9,3636.1,0.6013]
[1753455663285,0.1376,3636.6,3636.1,0.1376]
[1753455663499,2.75017453,3636.2,3635.3,0.6657]
[1753455663666,0.1376,3635.7,3635.2,0.1376]
[1753455663861,0.1376,3635.7,3635.2,0.8033]
[1753455664062,0.1376,3635.7,3635.3,2.75074368]
[1753455664262,0.1376,3635.4,3635.1,2.7509]
[1753455664474,0.1376,3635.4,3634.5,2.7513896]
[1753455664475,4.845,3635.3,3634.4,1.4675]
[1753455664671,0.1376,3635.1,3634.4,1.4675]
[1753455664873,0.1376,3635.1,3634.8,2.7511807]
[1753455665060,0.7724,3635.2,3634.6,2.75231256]
[1753455665260,0.7724,3635.2,3634.8,2.751183]
[1753455665459,5.6134,3635.2,3634.9,2.75108378]
[1753455665995,5.6134,3635.2,3634.6,0.001]
[1753455665996,5.6134,3635.2,3635.1,2.75095595]
[1753455666181,4.841,3635.2,3635.0,2.75100508]
[1753455666561,4.841,3635.2,3634.9,2.75109024]
[1753455666992,4.841,3635.2,3635.0,2.75102636]
[1753455667192,4.841,3635.2,3635.1,2.75095595]
[1753455667759,1.27236,3635.7,3635.4,2.75066632]
[1753455667964,0.7784,3636.2,3635.7,2.75048452]
[1753455668177,3.0,3636.0,3635.6,2.7505533]
[1753455668371,3.0,3636.0,3635.6,2.75057762]
[1753455668591,3.0,3636.0,3635.9,2.75035066]
[1753455668799,4.828,3636.1,3635.8,2.75037617]
[1753455669101,4.828,3636.1,3635.8,2.75042564]
[1753455669395,0.7784,3636.2,3635.5,0.7275]
[1753455669599,6.602,3636.6,3635.6,2.77808339]
[1753455669799,4.82,3636.5,3636.3,2.75003925]
[1753455669983,3.0,3636.4,3636.1,2.75015077]
[1753455670198,3.0,3636.4,3635.7,0.7275]
[1753455670565,3.0,3636.4,3636.1,2.7501315]
[1753455670764,6.602,3636.6,3635.9,0.0275035]
[1753455671068,6.602,3636.6,3636.5,2.74989687]
[1753455671271,4.814,3636.6,3636.5,3.47739687]
[1753455671490,0.7751,3637.3,3637.0,2.74949173]
[1753455671694,0.7789,3637.7,3636.5,3.97746762]
[1753455671871,4.811,3637.5,3636.7,2.74974564]
[1753455672076,4.811,3637.5,3636.9,2.74959443]
[1753455672276,4.811,3637.5,3636.5,0.4726]
[1753455672500,4.811,3637.5,3636.4,0.7275]
[1753455672688,5.2418,3637.5,3636.0,1.2523]
[1753455672880,2.74964476,3636.9,3636.2,2.75006773]
[1753455673076,4.809,3636.8,3635.9,0.7275]
[1753455673297,2.74987189,3636.6,3635.9,3.47778623]
[1753455673504,0.8163,3636.7,3635.6,0.8448]
[1753455673811,2.75027348,3636.1,3635.4,2.7516765]
[1753455673985,4.806,3636.0,3635.5,2.75057828]
[1753455674313,4.806,3636.0,3635.6,1.2001]
[1753455674508,4.806,3636.0,3635.8,2.75035634]
[1753455674697,4.806,3636.0,3635.8,3.47785634]
[1753455674896,4.805,3636.0,3635.8,3.47785634]
[1753455675411,4.805,3636.0,3635.5,0.1376]
[1753455675724,0.1376,3635.7,3635.4,0.001]
[1753455675916,5.74366,3636.0,3635.4,0.001]
[1753455676088,0.1376,3635.5,3635.4,0.001]
[1753455676415,4.9366,3635.5,3635.4,0.001]
[1753455677620,4.9336,3635.5,3635.4,2.75172894]
[1753455677916,0.1376,3635.8,3635.6,2.7505326]
[1753455678083,4.9286,3635.8,3635.6,2.7505326]
[1753455678285,4.9286,3635.8,3635.7,2.75050196]
[1753455678504,4.9286,3635.8,3635.4,3.95181916]
[1753455678713,4.9286,3635.8,3635.5,2.7506047]
[1753455679099,4.9286,3635.8,3635.7,2.75050196]
[1753455679625,4.9286,3635.8,3635.4,0.001]
[1753455679789,0.1376,3635.6,3635.4,0.001]
[1753455680384,0.1376,3635.6,3635.5,2.75065328]
[1753455680583,0.1376,3635.6,3635.4,0.001]
[1753455681519,0.1376,3635.6,3635.4,2.751726]
[1753455681725,0.2576,3635.6,3635.4,0.001]
[1753455682718,0.2576,3635.6,3635.4,2.75172713]
[1753455683017,0.12,3635.6,3635.5,3.47815328]
[1753455683256,0.12,3635.6,3635.5,4.60399987]
[1753455683419,4.78,3635.8,3635.5,1.96344006]
[1753455683591,4.78,3635.9,3635.6,0.7275]
[1753455683794,4.78,3635.9,3635.7,2.75043364]
[1753455683994,0.1376,3636.0,3635.8,2.75042631]
[1753455684190,0.1376,3636.0,3635.9,2.75035066]
[1753455684414,0.12,3636.1,3636.0,2.75027502]
[1753455684618,4.9,3636.1,3636.0,2.75027502]
[1753455684800,0.12,3636.1,3636.0,0.7275]
[1753455685001,0.12,3636.1,3636.0,2.75027502]
[1753455685192,0.12,3636.1,3635.9,2.75034293]
[1753455685389,0.12,3636.1,3636.0,2.75027502]
[1753455685594,0.12,3636.1,3636.0,3.47777502]
[1753455685813,0.12,3636.1,3635.9,2.75031942]
[1753455686016,0.12,3636.1,3635.8,0.7275]
[1753455686214,0.12,3636.1,3636.0,2.75027502]
[1753455686531,0.12,3636.1,3635.8,2.75040032]
[1753455686827,0.2576,3636.1,3635.8,2.75040032]
[1753455687031,0.2576,3636.1,3636.0,2.75027502]
[1753455687241,0.12,3636.1,3636.0,2.75027502]
[1753455687434,0.12,3636.1,3636.0,3.47777502]
[1753455687612,0.12,3636.1,3635.8,0.1376]
[1753455687937,1.0128,3636.0,3635.4,0.001]
[1753455688138,0.1376,3635.7,3635.4,0.001]
[1753455688330,0.1376,3635.5,3635.4,2.75172894]
[1753455688906,0.1376,3635.5,3635.4,3.47922894]
[1753455689106,0.1376,3635.9,3635.4,1.2011]
[1753455689346,4.779,3636.0,3635.9,2.75032693]
[1753455689549,0.2576,3636.1,3636.0,2.75027502]
[1753455689729,0.2576,3636.1,3636.0,4.60068797]
[1753455689730,0.12,3636.1,3636.0,4.60068797]
[1753455689915,4.779,3636.6,3636.5,2.74989687]
[1753455690120,4.779,3636.8,3636.5,1.2001]
[1753455690316,4.779,3636.8,3636.6,0.7275]
[1753455690644,4.9166,3636.9,3636.6,0.7275]
[1753455691136,4.9166,3636.9,3636.4,0.1376]
[1753455691441,4.9166,3636.9,3636.5,2.74989687]
[1753455691744,0.1376,3636.5,3636.0,2.75021356]
[1753455691926,4.9166,3636.5,3635.9,0.1376]
[1753455692239,4.9166,3636.5,3636.2,2.7501073]
[1753455692639,4.9166,3636.5,3635.9,0.6102]
[1753455692840,4.9166,3636.5,3636.3,2.75002846]
[1753455693046,4.9166,3636.5,3636.2,2.75010551]
[1753455693216,4.9166,3636.5,3636.3,2.75004327]
[1753455693943,4.9166,3636.5,3636.1,0.7275]
[1753455693944,4.9166,3636.5,3636.4,2.7499725]
[1753455694145,0.1376,3636.5,3636.4,2.7499725]
[1753455694512,0.002,3636.9,3636.8,2.74967003]
[1753455694921,0.002,3636.9,3636.8,3.94977003]
[1753455695126,0.002,3636.9,3636.8,3.47717003]
[1753455695434,0.002,3636.9,3635.9,0.7275]
[1753455695636,0.1376,3636.7,3636.3,2.74998816]
[1753455695834,0.1376,3636.5,3636.2,2.75010268]
[1753455696335,4.9156,3636.5,3636.4,2.7499725]
[1753455696651,4.9156,3636.5,3636.3,2.7500303]
[1753455697142,0.1376,3636.5,3636.4,2.7499725]
[1753455697346,0.1376,3636.5,3636.4,3.8848725]
[1753455698011,0.002,3636.9,3636.4,3.88480757]
[1753455698211,4.777,3636.8,3636.6,2.74977249]
[1753455698411,4.777,3636.8,3636.7,3.42694564]
[1753455698611,0.1396,3636.9,3636.8,2.74967003]
[1753455698847,4.9166,3636.9,3636.8,3.88457003]
[1753455699064,0.002,3636.9,3636.8,3.88457003]
[1753455699346,0.002,3636.9,3636.8,4.93385149]
[1753455699727,0.002,3636.9,3636.8,5.07145149]
[1753455699929,1e-08,3636.9,3636.8,5.07145149]
[1753455700341,1e-08,3637.1,3637.0,2.74951883]
[1753455700541,0.002,3637.7,3637.6,2.74906531]
[1753455701552,0.002,3637.7,3637.6,3.42626531]
[1753455703436,0.002,3637.7,3637.6,4.68035765]
[1753455703652,0.002,3637.7,3637.6,4.652867]
[1753455703847,0.002,3637.7,3637.6,5.52565765]
[1753455705172,0.002,3637.7,3637.6,0.1376]
[1753455705464,0.002,3637.7,3637.3,2.74927999]
[1753455705617,0.1396,3637.7,3637.4,2.74916141]
[1753455705952,0.002,3637.7,3637.6,2.74906531]
[1753455706160,0.002,3637.7,3637.6,2.88666531]
[1753455706467,0.002,3637.7,3637.6,4.9763013]
[1753455706915,0.002,3637.7,3637.6,4.5186013]
[1753455707118,0.002,3637.7,3637.6,4.9763013]
[1753455708217,0.002,3637.7,3637.6,10.4156013]
[1753455709855,0.002,3637.7,3637.6,5.6426013]
[1753455710960,0.002,3637.7,3637.6,3.42626531]
[1753455711172,0.002,3637.7,3637.6,3.45375596]
[1753455711523,0.002,3637.7,3637.6,3.91145596]
[1753455711724,0.002,3637.7,3637.6,3.88396531]
[1753455711919,0.002,3637.7,3637.1,2.74942859]
[1753455712144,0.002,3637.7,3636.9,0.86629594]
[1753455712331,0.002,3637.7,3637.5,2.74908796]
[1753455712629,0.002,3637.7,3637.0,0.15434959]
[1753455712630,0.002,3637.7,3637.1,0.02749443]
[1753455712835,0.002,3637.7,3637.6,2.74906531]
[1753455713034,0.002,3637.7,3637.6,3.0051162]
[1753455714024,0.002,3637.7,3637.6,3.00516053]
[1753455714377,0.002,3637.7,3637.6,0.25609522]
[1753455715158,2.74920429,3637.5,3636.6,2.74980187]
[1753455715358,2.74960626,3636.9,3636.7,0.25625108]
[1753455715574,2.74960626,3636.9,3636.8,0.25625108]
[1753455715575,8.33999443,3636.9,3636.8,0.25625108]
[1753455715923,11.33999443,3636.9,3636.8,0.25625108]
[1753455716128,2.7499772,3636.4,3635.5,0.6772]
[1753455716481,3.61814238,3636.6,3635.7,2.75050196]
[1753455716679,2.7499292,3636.5,3635.6,2.75057762]
[1753455716821,2.74990363,3636.5,3635.8,2.75040112]
[1753455717172,2.74990363,3636.5,3635.9,2.75034465]
[1753455717324,3.61813902,3636.6,3635.9,2.75034465]
[1753455717532,2.74990068,3636.5,3635.8,2.75041288]
[1753455717727,0.8683,3636.6,3635.6,0.39239849]
[1753455717930,0.8683,3636.6,3636.0,2.71721033]
[1753455718152,0.1376,3636.2,3636.0,2.71721033]
[1753455718470,0.1376,3636.2,3635.9,2.75032323]
[1753455718755,0.1376,3636.2,3635.7,2.88810196]
[1753455718947,0.1376,3636.2,3635.9,2.75030159]
[1753455719150,0.1376,3636.2,3636.0,2.75026419]
[1753455719726,0.1376,3636.2,3635.9,2.75033218]
[1753455719922,0.1376,3636.2,3636.1,2.75019938]
[1753455720336,0.8204,3636.9,3636.1,1.1349]
[1753455720526,0.1376,3636.7,3636.2,0.02750123]
[1753455720735,0.7654,3637.4,3637.0,2.74951343]
[1753455721064,0.7654,3637.4,3637.1,2.74944323]
[1753455721065,4.768,3637.3,3637.1,2.74944323]
[1753455721246,0.1376,3637.0,3636.9,2.74954011]
[1753455721425,4.768,3637.3,3636.9,0.6772]
[1753455721630,4.768,3637.3,3636.8,2.74966614]
[1753455721631,4.9056,3637.3,3637.0,3.42666856]
[1753455721826,4.9056,3637.3,3636.8,2.88721407]
[1753455722026,0.1376,3637.3,3636.8,0.8148]
[1753455722253,3.1376,3637.3,3636.9,2.7495255]
[1753455722464,0.1376,3637.3,3637.2,2.74936764]
[1753455722670,0.002,3637.7,3637.6,2.74906531]
[1753455723258,0.002,3637.7,3637.6,3.91145596]
[1753455723623,1e-08,3637.7,3637.6,9.43815596]
[1753455723826,1e-08,3637.7,3637.6,9.41066531]
[1753455724054,1e-08,3637.7,3637.6,9.96066531]
[1753455724256,1e-08,3637.7,3637.6,11.52032273]
[1753455725040,1e-08,3637.7,3637.6,10.97032273]
[1753455725246,1e-08,3637.7,3637.6,4.64266531]
[1753455725758,1e-08,3637.7,3637.6,9.40866531]
[1753455726771,1e-08,3637.7,3637.6,4.64266531]
[1753455726950,1e-08,3637.7,3637.6,9.43615596]
[1753455727157,1e-08,3637.7,3637.6,9.40866531]
[1753455727466,1e-08,3637.7,3637.6,10.63820723]
[1753455727768,1e-08,3637.7,3637.6,10.63720723]
[1753455727977,1e-08,3637.7,3637.6,9.42220723]
[1753455728269,1e-08,3637.7,3637.6,14.18720723]
[1753455729562,1e-08,3637.7,3637.6,13.63620723]
[1753455729935,1e-08,3637.7,3637.6,13.63520723]
[1753455731142,1e-08,3637.7,3637.6,13.63420723]
[1753455731346,1e-08,3637.7,3637.6,14.18420723]
[1753455732679,1e-08,3638.0,3637.9,5.74883861]
[1753455732879,1e-08,3638.5,3638.3,2.7485364]
[1753455733156,1e-08,3638.8,3638.7,5.74823425]
[1753455733380,0.002,3639.5,3639.4,2.74770566]
[1753455733583,0.002,3639.5,3639.4,8.08618271]
[1753455733895,0.002,3639.5,3639.4,9.33900566]
[1753455734100,1e-08,3639.5,3639.4,14.03044739]
[1753455734396,1e-08,3640.2,3640.1,7.08677727]
[1753455734561,1e-08,3640.2,3640.1,11.84677727]
[1753455734762,1e-08,3640.2,3640.1,7.23407727]
[1753455734964,1e-08,3640.2,3640.1,11.29677727]
[1753455735163,1e-08,3640.2,3640.1,12.38250403]
[1753455735379,1e-08,3640.2,3640.1,13.37790403]
[1753455736206,1e-08,3640.2,3640.1,12.82590403]
[1753455736353,1e-08,3640.2,3640.1,8.06790403]
[1753455736553,1e-08,3640.2,3640.1,13.37590403]
[1753455736966,1e-08,3640.2,3640.1,8.61790403]
[1753455737155,1e-08,3640.2,3640.1,13.37590403]
[1753455738730,1e-08,3641.0,3640.8,3.29664908]
[1753455738931,1e-08,3641.0,3640.9,12.5118783]
[1753455739224,1e-08,3641.0,3640.9,11.10791257]
[1753455739575,1e-08,3641.0,3640.9,11.80521257]
[1753455740530,1e-08,3641.0,3640.9,11.80421257]
[1753455740676,1e-08,3641.0,3640.9,12.24961257]
[1753455740874,1e-08,3641.0,3640.9,12.79961257]
[1753455741687,1e-08,3641.0,3640.9,13.56581257]
[1753455742031,1e-08,3642.1,3641.8,0.55]
[1753455742172,0.002,3643.1,3641.0,3.55]
[1753455742173,0.002,3643.1,3643.0,2.74499039]
[1753455742531,0.002,3643.1,3643.0,7.49799039]
[1753455742875,1e-08,3643.1,3643.0,9.47009039]
[1753455743113,1e-08,3643.1,3643.0,10.69160755]
[1753455743317,1e-08,3643.1,3643.0,14.24160755]
[1753455743894,1e-08,3643.1,3643.0,14.24060755]
[1753455744095,1e-08,3643.1,3643.0,9.62620755]
[1753455744294,1e-08,3643.1,3643.0,14.37820755]
[1753455744511,1e-08,3643.1,3643.0,2.88259039]
[1753455745285,0.7561,3644.0,3643.0,3.60734029]
[1753455745531,0.7796,3645.2,3643.3,0.8166]
[1753455745692,0.1368,3644.9,3643.5,3.0]
[1753455746047,0.7796,3645.2,3645.1,2.74340895]
[1753455746331,0.7796,3645.2,3645.0,0.1368]
[1753455746486,0.9659,3645.7,3645.2,2.74328544]
[1753455746685,0.5194,3645.6,3645.4,0.1368]
[1753455746938,0.9659,3645.5,3645.4,0.1368]
[1753455747395,0.7555,3645.4,3645.2,0.1368]
[1753455747599,0.7555,3645.4,3644.0,0.6973]
[1753455747600,2.18153088,3645.4,3643.9,0.7505]
[1753455747896,0.1368,3645.0,3644.5,0.1368]
[1753455748096,2.74363476,3644.8,3643.9,2.74424891]
[1753455748295,0.9659,3644.7,3644.3,0.1376]
[1753455748522,0.5194,3645.6,3644.4,0.02743935]
[1753455748723,0.817,3645.9,3644.4,8.21565546]
[1753455749025,0.817,3645.9,3645.0,0.769]
[1753455749242,0.817,3645.9,3644.7,3.0]
[1753455749243,1.7829,3645.9,3644.7,2.74371004]
[1753455749518,0.9659,3645.8,3644.6,5.515]
[1753455749721,0.817,3645.9,3645.7,2.74293336]
[1753455749921,3.0,3646.3,3645.4,2.74312269]
[1753455750096,0.67083356,3646.2,3645.0,0.02743484]
[1753455750290,0.4465,3646.2,3645.1,2.74340895]
[1753455750485,0.4465,3646.2,3645.2,0.02743333]
[1753455750718,0.4465,3646.2,3645.0,0.02743484]
[1753455751023,0.7596,3646.8,3645.1,3.72473408]
[1753455751221,0.7596,3646.8,3645.3,0.55]
[1753455751393,0.7596,3646.8,3645.2,1.9447]
[1753455751394,2.91480891,3646.7,3645.2,1.9447]
[1753455751597,0.9659,3646.6,3645.9,2.74279791]
[1753455751830,0.9659,3646.6,3645.3,4.77243258]
[1753455751831,0.5194,3646.5,3645.3,4.745]
[1753455752027,0.5194,3646.5,3645.3,4.77243258]
[1753455752199,0.17255,3646.7,3645.4,2.74318318]
[1753455752401,0.17255,3646.7,3645.5,0.02743107]
[1753455752921,2.74252201,3646.3,3645.3,0.02743258]
[1753455753124,0.9659,3646.2,3645.3,2.74323971]
[1753455753381,3.0,3646.0,3644.6,2.74373886]
[1753455753490,3.0,3646.0,3644.4,1.4953]
[1753455753491,0.9659,3645.9,3644.5,0.0274386]
[1753455753696,0.94611,3645.8,3644.8,2.74360735]
[1753455753999,0.7512,3645.6,3645.5,2.74310794]
[1753455754201,0.7793,3646.0,3645.1,0.768]
[1753455754435,0.7793,3646.0,3645.2,0.02743333]
[1753455755112,0.7793,3646.0,3645.9,2.74280698]
[1753455755809,0.7793,3646.0,3645.4,0.02743183]
[1753455755810,0.93675,3646.7,3645.4,0.02743183]
[1753455755998,0.93675,3646.7,3645.7,2.74295745]
[1753455756199,0.93675,3646.7,3646.4,2.74238141]
[1753455756435,0.8024,3647.4,3646.2,0.02742581]
[1753455756734,0.8024,3647.4,3646.6,2.74227741]
[1753455756889,0.8024,3647.4,3646.3,2.74244552]
[1753455757227,3.0,3647.2,3646.0,1.44242731]
[1753455757430,3.9736,3647.3,3646.6,2.74221569]
[1753455757739,0.7517689,3647.2,3646.3,2.74245124]
[1753455757894,0.5194,3647.1,3646.4,2.74237687]
[1753455758524,0.5194,3647.1,3646.7,0.1368]
[1753455758729,5.2594,3647.1,3646.7,0.1368]
[1753455758895,0.9736,3647.0,3646.7,0.1368]
[1753455759096,0.66021689,3646.9,3646.7,0.1368]
[1753455759624,0.66021689,3646.9,3645.6,4.15797578]
[1753455759625,0.7982,3646.7,3645.9,2.74274842]
[1753455759837,0.7982,3646.7,3646.3,0.1368]
[1753455760732,0.7982,3646.7,3646.4,2.74236476]
[1753455760952,0.8002,3647.1,3646.6,0.1368]
[1753455761452,1.541,3647.0,3645.8,0.6252]
[1753455761754,1.541,3647.0,3645.3,3.02743258]
[1753455761755,2.74220528,3646.7,3645.4,0.6252]
[1753455761899,0.1368,3646.5,3646.0,0.1368]
[1753455762099,0.7982,3646.8,3646.1,2.74259859]
[1753455762349,0.7982,3646.8,3646.3,2.74248727]
[1753455762497,1.2965,3646.8,3645.7,0.02742957]
[1753455762693,2.17434654,3646.8,3645.7,2.77034067]
[1753455762928,1.67604654,3646.8,3645.8,2.74288222]
[1753455763132,1.67604654,3646.8,3645.7,0.02742957]
[1753455763133,2.17434654,3646.8,3646.2,2.74257263]
[1753455763598,1.2965,3646.7,3645.7,0.02742957]
[1753455763798,1.2965,3646.7,3645.4,0.02743183]
[1753455764132,1.33204654,3646.8,3644.6,0.8003]
[1753455764133,2.74268333,3646.1,3644.7,3.36887997]
[1753455764336,0.9525,3646.0,3644.7,0.6252]
[1753455764634,2.74287253,3645.9,3645.2,2.74332523]
[1753455764937,4.736,3645.8,3645.2,2.74332523]
[1753455765154,0.9525,3646.0,3644.7,0.6252]
[1753455765447,0.7982,3645.6,3644.7,3.36890021]
[1753455765602,0.7982,3645.6,3644.7,0.6252]
[1753455765796,4.736,3645.5,3644.7,3.36889926]
[1753455766006,4.736,3645.5,3645.0,2.74346145]
[1753455766206,4.736,3645.5,3644.9,2.74353928]
[1753455766508,0.82771652,3645.5,3644.8,2.74362837]
[1753455766738,0.82771652,3645.5,3644.4,0.6252]
[1753455767041,0.7982,3645.6,3642.4,0.14056926]
[1753455767042,5.6885,3645.4,3644.5,2.74386061]
[1753455767340,8.43170295,3645.4,3644.6,2.74376019]
[1753455767542,4.735,3645.3,3645.0,2.74342299]
[1753455767843,4.735,3645.2,3645.0,2.74341836]
[1753455768141,5.2085,3645.2,3644.0,2.74418024]
[1753455768340,0.7982,3645.0,3644.3,2.7439519]
[1753455768554,0.7982,3645.0,3644.4,2.74388082]
[1753455768761,2.74362017,3644.9,3643.7,0.6252]
[1753455768959,2.74393246,3644.5,3643.2,0.4717]
[1753455769255,0.8132,3644.7,3642.0,2.74569623]
[1753455769256,0.753,3644.2,3642.5,0.6252]
[1753455769430,0.753,3643.5,3642.2,0.6252]
[1753455769647,0.753,3643.5,3642.9,2.74505416]
[1753455769648,4.735,3643.4,3642.9,2.74505416]
[1753455769834,0.753,3643.5,3643.3,2.74476436]
[1753455770037,4.734,3643.4,3642.6,0.6252]
[1753455770433,0.753,3643.5,3642.6,0.6252]
[1753455770661,4.734,3643.4,3643.3,2.74476436]
[1753455770863,4.734,3643.4,3642.2,3.37078734]
[1753455771063,4.734,3643.4,3642.2,0.6252]
[1753455771264,0.5487,3643.3,3642.8,2.74511497]
[1753455771557,5.6865,3643.2,3642.7,2.74519897]
[1753455771855,0.5487,3643.3,3642.6,2.74527836]
[1753455772161,0.1376,3643.1,3642.7,2.74521146]
[1753455772380,0.1376,3643.1,3642.6,2.88289179]
[1753455772659,4.734,3643.0,3642.6,2.88289179]
[1753455772855,4.734,3643.0,3642.6,0.1376]
[1753455773023,0.753,3643.5,3642.7,0.6252]
[1753455773225,4.734,3643.4,3642.9,0.1376]
[1753455773440,4.734,3643.4,3642.9,2.74504623]
[1753455773776,0.1376,3643.3,3643.0,2.74497917]
[1753455773980,4.8716,3643.3,3642.8,2.88273676]
[1753455774186,4.8716,3643.3,3643.1,2.74491319]
[1753455774346,4.8716,3643.3,3643.2,2.7448397]
[1753455774685,4.733,3643.3,3643.2,2.7448397]
[1753455774882,4.733,3643.3,3643.2,2.8824397]
[1753455775081,0.753,3643.5,3643.4,2.74468902]
[1753455775293,5.486,3643.5,3643.4,2.74468902]
[1753455775451,5.486,3643.5,3643.2,2.74479987]
[1753455775646,5.486,3643.5,3643.3,2.74475194]
[1753455775859,5.486,3643.5,3642.7,0.6252]
[1753455776077,0.1376,3643.3,3643.0,2.74491597]
[1753455776468,0.1376,3643.3,3643.2,2.7448397]
[1753455776662,0.1376,3643.3,3642.9,2.74506574]
[1753455776860,0.1376,3643.3,3643.0,2.74498578]
[1753455777059,0.1376,3643.3,3642.8,0.1376]
[1753455777454,0.1376,3643.3,3642.9,2.74501235]
[1753455777752,1.42861403,3643.3,3642.7,0.1376]
[1753455777952,4.53409029,3643.3,3642.6,2.74526438]
[1753455778152,0.1376,3643.1,3643.0,2.74493743]
[1753455778352,4.8696,3643.1,3642.6,0.1376]
[1753455778758,0.1376,3643.1,3643.0,2.74499039]
[1753455778964,0.753,3643.5,3643.1,2.74487548]
[1753455779255,0.1376,3643.2,3643.0,2.74497613]
[1753455779770,4.732,3643.1,3642.6,0.6252]
[1753455779973,0.8906,3643.5,3643.0,0.1376]
[1753455780174,4.731,3643.4,3643.3,2.74476436]
[1753455780486,0.753,3643.5,3643.2,0.1376]
[1753455780687,0.753,3643.5,3642.3,0.6252]
[1753455780688,5.1852,3643.4,3643.0,0.1376]
[1753455780853,0.1376,3643.1,3643.0,2.74492804]
[1753455781058,0.753,3643.5,3642.8,2.7451411]
[1753455781295,4.731,3643.4,3643.0,0.1376]
[1753455781460,0.1376,3643.1,3642.6,0.1376]
[1753455781661,0.9525,3643.0,3642.6,0.1376]
[1753455781977,3.19919279,3643.0,3642.6,0.1376]
[1753455782157,3.19919279,3643.0,3641.8,1.0969]
[1753455782158,0.7713,3642.8,3641.8,1.0969]
[1753455782362,0.1376,3642.5,3642.0,0.1376]
[1753455782663,0.7713,3642.8,3642.3,2.74550381]
[1753455782664,0.1376,3642.7,3642.3,2.74550381]
[1753455782877,4.73,3642.6,3642.4,0.6252]
[1753455783060,4.73,3642.6,3642.3,0.1376]
[1753455783378,4.73,3642.6,3641.8,0.6252]
[1753455783379,4.8676,3642.6,3642.2,2.74557185]
[1753455783596,4.8676,3642.6,3642.1,2.88324596]
[1753455783917,4.8676,3642.6,3642.3,2.74550668]